Cogmind - Beta 9.2 @@@ ROGUE MODE // 2019.11.25 @ 09:24:53 Player: KernelPanic Result: Self-destructed Performance ------------- Evolutions (3) 1500 Regions Visited (4) 800 Robots Destroyed (11) 55 Value Destroyed (244) 244 Prototype IDs (1) 20 Alien Tech Used (0) 0 Bonus (0) 0 TOTAL SCORE: 2619 Bonus ------- None Cogmind --------- Core Integrity 637/700 Matter 227/300 Energy 45/100 System Corruption 0% Temperature Cool (0) Movement Hovering (60) Location -7/Factory Parts ------- > --- POWER (1) -------- (None) > --- PROPULSION (4) --- Gravmag System Gravmag System > --- UTILITY (5) ------ Small Storage Unit Hacking Suite > --- WEAPON (3) ------- Lightning Gun > --- INVENTORY (6) ---- Matter Filter Peak State ------------ > --- POWER ------------ Ion Engine > --- PROPULSION ------- Gravmag System Gravmag System Gravmag System Gravmag System > --- UTILITY ---------- Small Storage Unit Propulsion Shielding Hacking Suite > --- WEAPON ----------- Heavy Particle Gun > --- INVENTORY -------- Light Treads Light Treads Aluminum Leg Aluminum Leg Wheel EM Pulse Gun [Rating: 26] Favorites ----------- Power Ion Engine Engine Ion Engine Propulsion Wheel Leg Aluminum Leg Wheel Wheel Hover Unit Gravmag System Utility Small Storage Unit Storage Small Storage Unit Hackware Hacking Suite Protection Propulsion Shielding Weapon Assault Rifle Energy Gun Heavy Particle Gun Energy Cannon Beam Cannon Ballistic Gun Assault Rifle Special Melee Weapon Datajack Build | -11 -10 -9 -8 -7 ------- Run | Scr Mat Mat Mat Fac Slots Evolved 6 | . . 2 2 2 Power . | . . . . . Propulsion 2 | . . 1 1 . Utility 3 | . . 1 1 1 Weapon 1 | . . . . 1 Parts Attached 16 | . 4 . 10 2 Power 1 | . . . 1 . Engine 1 | . . . 1 . Core . | . . . . . Reactor . | . . . . . Propulsion 8 | . 2 . 6 . Treads . | . . . . . Leg . | . . . . . Wheel 4 | . 2 . 2 . Hover 4 | . . . 4 . Flight . | . . . . . Utility 2 | . 1 . 1 . Device . | . . . . . Storage . | . . . . . Processor . | . . . . . Hackware 1 | . 1 . . . Protection 1 | . . . 1 . Artifact . | . . . . . Weapon 5 | . 1 . 2 2 Energy Gun 2 | . . . 1 1 Energy Cannon 1 | . 1 . . . Ballistic Gun 1 | . . . 1 . Ballistic Cannon . | . . . . . Launcher . | . . . . . Special Weapon . | . . . . . Impact Weapon . | . . . . . Slashing Weapon . | . . . . . Piercing Weapon . | . . . . . Special Melee Weapon 1 | . . . . 1 Unidentified Prototypes 1 | . . . 1 . Parts Lost 9 | . . . 4 5 Power 2 | . . . 1 1 Propulsion 3 | . . . 1 2 Utility 1 | . . . . 1 Weapon 3 | . . . 2 1 Highest Loss Streak 5 | . . . 2 5 Average Slot Usage (%) 76 | . 94 77 73 61 Engine 9 | . 14 11 9 5 Wheel 17 | . 26 22 19 . Hover 8 | . . . 4 29 Storage 9 | . 14 11 9 7 Hackware 8 | . 9 11 9 7 Protection 4 | . . . 7 6 Energy Gun 5 | . 12 . 5 1 Energy Cannon 5 | . 2 11 6 . Ballistic Gun 5 | . 14 11 2 . Naked Turns . | . . . . . Heaviest Build 16 | 13 14 14 16 11 Greatest Support 44 | 20 20 20 44 44 Greatest Overweight (x) 1 | . . . 1 1 Average Overweight (x) . | . . . . . Largest Inventory Capacity 6 | . 6 6 6 6 Average Capacity 6 | . 6 6 6 6 Most Carried 6 | . 6 6 6 6 Average Carried 5 | . 6 6 5 1 Final Capacity 6 | 6 6 6 6 6 Final Carried 6 | 6 6 6 6 1 Class Distribution -------------------- 100% | Mutant Dominant Class ---------------- Mutant | -10/Materials Mutant | -9/Materials Mutant | -8/Materials Mutant | -7/Factory Resources | -11 -10 -9 -8 -7 ----------- Run | Scr Mat Mat Mat Fac Matter Collected 302 | 200 11 . 76 15 Remotely . | . . . . . Salvage Created 277 | . 82 46 134 15 Parts 27 | . 13 2 9 3 Haulers Intercepted . | . . . . . Recyclers Shooed . | . . . . . Parts Field Recycled . | . . . . . Retrieved Matter . | . . . . . Parts Self-Destructed . | . . . . . Prevented . | . . . . . Kills | -11 -10 -9 -8 -7 ------- Run | Scr Mat Mat Mat Fac Combat Hostiles Destroyed 7 | . 2 3 2 . Guns 3 | . 2 1 . . Cannons 4 | . . 2 2 . Classes Destroyed 5 | . 2 1 2 . Worker 2 | . . . 2 . Operator 2 | . 1 . . 1 Swarmer 3 | . . 3 . . Grunt 3 | . 2 . 1 . Hunter 1 | . . . 1 . Best Kill Streak 3 | . 2 3 2 1 Combat Bots Only 3 | . 2 3 1 . Max Kills in Single Turn 1 | . 1 1 1 1 Gunslinging . | . . . . . Exploded . | . . . . . Melee . | . . . . . Uniques/NPCs Destroyed . | . . . . . Combat | -11 -10 -9 -8 -7 -------- Run | Scr Mat Mat Mat Fac Damage Taken 1075 | . 178 81 586 230 Core 249 | . 36 18 132 63 Absorbed by Shields . | . . . . . Core Remaining (%) 89 | 100 85 95 76 . Volleys Fired 35 | . 13 7 14 1 Largest 2 | . 2 2 2 1 Hottest 115 | . 70 80 115 55 Shots Fired 69 | . 26 14 28 1 Gun 48 | . 26 7 14 1 Cannon 21 | . . 7 14 . Launcher . | . . . . . Special . | . . . . . Kinetic 21 | . 13 7 1 . Thermal 47 | . 13 7 27 . Explosive . | . . . . . Electromagnetic 1 | . . . . 1 Robot Hit Streak 5 | . 5 5 5 . Robot Miss Streak 3 | . 3 2 2 3 Penetration Max . | . . . . . Secondary Targets 1 | . 1 . . . Max Gunslinging Chain 1 | . 1 . . . Shots Hit Robots 40 | . 17 8 15 . Core Hits 18 | . 5 3 8 2 Critical Hits 1 | . 1 . . . Critical Kills 1 | . 1 . . . Critical Parts Destroyed . | . . . . . Melee Attacks . | . . . . . Impact . | . . . . . Slashing . | . . . . . Piercing . | . . . . . Sneak Attacks . | . . . . . Combat Hostiles . | . . . . . Follow-up Attacks . | . . . . . Damage Inflicted 692 | . 211 127 311 43 Guns 450 | . 211 38 185 16 Cannons 215 | . . 89 126 . Explosions . | . . . . . Melee . | . . . . . Ramming 27 | . . . . 27 Kinetic 134 | . 85 38 11 . Thermal 515 | . 126 89 300 . Explosive . | . . . . . Electromagnetic 16 | . . . . 16 Impact . | . . . . . Slashing . | . . . . . Piercing . | . . . . . Highest Corruption . | . . . . . Average Corruption . | . . . . . Corruption Purged . | . . . . . Overload Shots . | . . . . . Overflow Damage . | . . . . . Projectiles . | . . . . . Explosions . | . . . . . Melee . | . . . . . Knockbacks . | . . . . . Impact . | . . . . . Kinetic . | . . . . . Secondary . | . . . . . Self-Inflicted Damage 13 | . . . . 13 Shots . | . . . . . Rammed 1 | . . . . 1 Targets Rammed 1 | . . . . 1 Kicked . | . . . . . Crushed . | . . . . . Highest Temperature 320 | . 195 63 320 13 Average Temperature 88 | . 92 32 109 10 Received Heat Transfer 345 | . 96 . 171 78 Siege Activations . | . . . . . Robots Corrupted . | . . . . . Combat Hostiles . | . . . . . Parts Fried . | . . . . . Impact Corruptions . | . . . . . Robots Melted . | . . . . . Combat Hostiles . | . . . . . Parts Melted 5 | . 1 2 2 . Heat Transferred 1147 | . 370 185 592 . Parts Sabotaged . | . . . . . Parts Stolen . | . . . . . Parts Stripped . | . . . . . Power Chain Reactions . | . . . . . Missiles Intercepted . | . . . . . Alert | -11 -10 -9 -8 -7 ------- Run | Scr Mat Mat Mat Fac Peak Influence 163 | . 70 114 163 89 Average Influence 73 | . 26 44 110 74 Maximum Alert Level . | . . . . . Low Security (%) 100 | . 100 100 100 100 Level 1 . | . . . . . Level 2 . | . . . . . Level 3 . | . . . . . Level 4 . | . . . . . Level 5 . | . . . . . High Security . | . . . . . Max Security . | . . . . . Squads Dispatched 3 | . 1 . 1 1 Investigation 2 | . . . 1 1 Extermination . | . . . . . Reinforcement 1 | . 1 . . . Assault . | . . . . . Garrison . | . . . . . Intercept . | . . . . . Construction Impeded . | . . . . . Haulers Reinforced . | . . . . . Stealth | -11 -10 -9 -8 -7 --------- Run | Scr Mat Mat Mat Fac Distress Signals 3 | . . 1 1 1 Communications Jammed . | . . . . . Distress Signals . | . . . . . Times Spotted 26 | . 4 5 15 2 Peak Tracking Total 11 | . 3 4 11 3 Tactical Retreats 1 | . . . 1 . Traps | -11 -10 -9 -8 -7 ------- Run | Scr Mat Mat Mat Fac Traps Triggered 1 | . . . 1 . Indirectly . | . . . . . Trap Hack Attempts . | . . . . . Triggered . | . . . . . Disarmed . | . . . . . Reprogrammed . | . . . . . Reused . | . . . . . Traps Extracted . | . . . . . Installed . | . . . . . Triggered . | . . . . . Machines | -11 -10 -9 -8 -7 ---------- Run | Scr Mat Mat Mat Fac Machines Disabled 1 | . . . 1 . Max in Single Turn 1 | . . . 1 . Garrison Access 1 | . . . . 1 Machines Sabotaged . | . . . . . Garrisons Compromised . | . . . . . Overloaded Fab Kills . | . . . . . Fab Network Shutdowns . | . . . . . Hacking | -11 -10 -9 -8 -7 --------- Run | Scr Mat Mat Mat Fac Machines Accessed 2 | . . . . 2 Terminals 1 | . . . . 1 Fabricators . | . . . . . Repair Stations . | . . . . . Recycling Units . | . . . . . Scanalyzers . | . . . . . Garrison Access 1 | . . . . 1 Total Hacks 3 | . . . . 3 Successful 1 | . . . . 1 Failed 2 | . . . . 2 Catastrophic 1 | . . . . 1 Database Lockouts . | . . . . . Manual 2 | . . . . 2 Terminals 2 | . . . . 2 Fabricators . | . . . . . Repair Stations . | . . . . . Recycling Units . | . . . . . Scanalyzers . | . . . . . Garrison Access 1 | . . . . 1 Terminal Hacks . | . . . . . Fabricator Hacks . | . . . . . Repair Station Hacks . | . . . . . Recycling Unit Hacks . | . . . . . Scanalyzer . | . . . . . Garrison Access Hacks 1 | . . . . 1 Seal Access 1 | . . . . 1 Unauthorized Hacks . | . . . . . Terminals . | . . . . . Fabricators . | . . . . . Repair Stations . | . . . . . Recycling Units . | . . . . . Scanalyzers . | . . . . . Garrison Access . | . . . . . Data Cores Recovered 1 | . . . . 1 Used . | . . . . . Hacking Detections 1 | . . . . 1 Full Trace Events 1 | . . . . 1 Feedback Events . | . . . . . Feedback Blocked . | . . . . . Robot Schematics Acquired . | . . . . . Robots Built . | . . . . . Matter . | . . . . . Time . | . . . . . Total Robot Build Rating . | . . . . . Part Schematics Acquired . | . . . . . Parts Built . | . . . . . Matter . | . . . . . Time . | . . . . . Total Part Build Rating . | . . . . . Parts Repaired . | . . . . . Time . | . . . . . Parts Recycled . | . . . . . Recycled Matter . | . . . . . Retrieved Matter . | . . . . . Retrieved Components . | . . . . . Parts Scanalyzed . | . . . . . Part Schematics Acquired . | . . . . . Parts Damaged . | . . . . . Bothacking | -11 -10 -9 -8 -7 ------------ Run | Scr Mat Mat Mat Fac Used RIF Installer . | . . . . . Robots Hacked . | . . . . . Non-combat . | . . . . . Combat . | . . . . . Robot Hacks Applied . | . . . . . Relay Couplers Released . | . . . . . Robots Rewired . | . . . . . Allies Hacked . | . . . . . Hacks Repelled . | . . . . . Allies | -11 -10 -9 -8 -7 -------- Run | Scr Mat Mat Mat Fac Total Allies . | . . . . . Largest Group . | . . . . . Highest-Rated Group . | . . . . . Highest-Rated Ally . | . . . . . Total Orders . | . . . . . Ally Attacks . | . . . . . Total Damage . | . . . . . Kills . | . . . . . Allies Corrupted . | . . . . . Allies Melted . | . . . . . Intel | -11 -10 -9 -8 -7 ------- Run | Scr Mat Mat Mat Fac Robot Analysis Total . | . . . . . Derelict Logs Recovered . | . . . . . Drone Launches . | . . . . . Drone Recoveries . | . . . . . Exploration | -11 -10 -9 -8 -7 ------------- Run | Scr Mat Mat Mat Fac Turns Passed 655 | . 141 111 263 140 Spaces Moved 744 | 1 114 113 280 236 Core 1 | . . . . 1 Treads . | . . . . . Legs 12 | 1 11 . . . Wheels 431 | . 103 113 215 . Hover 300 | . . . 65 235 Flight . | . . . . . Fastest Speed 48 | 120 80 80 48 48 Average Speed 68 | 120 83 80 72 49 Slowest Speed 120 | 120 120 80 120 100 Overloaded Moves . | . . . . . Propulsion Burnouts . | . . . . . Robots Hopped . | . . . . . Cave-ins Triggered . | . . . . . Exploration Rate (%) 14 | 2 21 14 25 8 Regions Visited 4 Branch Regions . Pre-discovered Areas . | . . . . . Known Exits Taken . | . . . . . Unknown Exits Taken 4 | 1 1 1 1 . Scrap Searched . | . . . . . Spaces Dug . | . . . . . Terrain Destroyed . | . . . . . Melee . | . . . . . Projectile . | . . . . . AOE . | . . . . . Actions | -11 -10 -9 -8 -7 --------- Run | Scr Mat Mat Mat Fac Total 819 | . 131 119 308 261 Wait 13 | . . . . 13 Move 740 | . 113 112 279 236 Hop . | . . . . . Pick Up 2 | . . . . 2 Fast Attach 12 | . 2 . 9 1 Attach 2 | . . . 1 1 Detach 1 | . . . 1 . Swap 2 | . 2 . . . Drop 11 | . 1 . 4 6 Fire 35 | . 13 7 14 1 Melee . | . . . . . Ram 1 | . . . . 1 Kick . | . . . . . Crush . | . . . . . Escape Stasis . | . . . . . Rewire . | . . . . . Trap . | . . . . . Miscellaneous . | . . . . . Route ------- -11/Scrapyard -10/Materials -9/Materials -8/Materials -7/Factory History --------- Turn | Location | Event 1 | -11/Scrapyard | Discovered new exit (range 0) 1 | -11/Scrapyard | Entered Materials 136 | -10/Materials | Discovered new exit (range 4) 142 | -10/Materials | Entered another Materials area 142 | -9/Materials | Evolved 2 slots: Propulsion x1, Utility x1 241 | -9/Materials | Discovered new exit (range 16) 253 | -9/Materials | Entered another Materials area 253 | -8/Materials | Evolved 2 slots: Propulsion x1, Utility x1 323 | -8/Materials | Build established: Mutant 509 | -8/Materials | Discovered new exit (range 15) 516 | -8/Materials | Entered Factory 516 | -7/Factory | Evolved 2 slots: Utility x1, Weapon x1 656 | -7/Factory | Self-destructed Last Messages --------------- 00522_ Acquired Lightning Gun. 00524_ Acquired Matter Filter. 00547_ Connecting with Garrison Access... 00547_ Current location identified: Factory >>Seal Access door sealed. 00567_ Slammed into O-16 Technician. 00567_ O-16 Technician destroyed. 00568_ Acquired data core, extracted dynamic key. 00568_ Acquired 15 matter. 00570_ Acquired Datajack. 00599_ W-25 Informer sends out distress signal. 00612_ Connecting with Terminal... 00612_ ALERT: Suspicious activity at Terminal F002. Dispatching Investigation squad. 00627_ Ion Engine destroyed. 00627_ Datajack destroyed. 00630_ Gravmag System destroyed. 00646_ Propulsion Shielding destroyed. 00651_ Gravmag System destroyed. Map ----- +----------------------------------------------------+ | "" """" """" "#?????????????????????????????????? | | "" """" """" T#?????????????????????????????????? | | "" """" """" "#?????????????????????????????????? | | "" """" """" "#?????????????????????????????????? | | "" """" """" "#?????????????????????????????????? | | #?????????????????????????????????? | | #?????????????????????????????????? | | ######### #?????????????????????????????????? | | /#???????# #?????????????????????????????????? | | ####?##### ##??######?????????????????????????? | | # # #?? ??????????????????????????? | | =# """ # #?? ??????????????????????????? | | # """ # #? """ ??????????????????????????? | | # """ # #? """ "?????????????????????????? | | # # # """ """ #?????????????????????? | | # """ # # #?????????????????????? | | # """ + + ! #?????????????????????? | | # """ # # #?????????????????????? | | ## # # #?????????????????????? | | ?# """ # #? " "" #?????????????????????? | | ?# """ # #? "R"????????????????????????? | | ?# """ # +?? """????????????????????????? | | ?# # #??#######?????????????????????????? | | ?# """ + #??????????????????????????????????? | | ?# """ ## ######????#####????????????????????? | | ?# """ ## ## ######@ #????????????????????? | | ?# ## Y #????????????????????? | | ?# ?##### ###### #????????????????????? | | ??########?????#####????#####????????????????????? | | ?????????????????????????????????????????????????? | | ?????????????????????????????????????????????????? | | | | | | | | | | | | | | | | | | | | | | | | | | | | | | | | | | | | | | | +----------------------------------------------------+ Best States ------------- Heat Dissipation 34 Energy Generation 10 Energy Capacity 250 Matter Stores 300 Matter Capacity 300 Sight Range 16 Terrain Scan Density 10 Propulsion Shielding 33 Evasion (%) 55 Offensive Hacking 10 Item Schematics ----------------- None Robot Schematics ------------------ None Fabricated ------------ Nothing Alien Tech Used ----------------- None Achievements -------------- None Challenges ------------ None Game ------ Seed LatentCloakFacilitator Manual? 0 Play Time 00:06:53 Cumulative 109.0 hours Start 2019.11.22 @ 15:02:18 End 2019.11.25 @ 09:24:53 Sessions 2 Manual Loads 0 Difficulty Rogue Special Mode None Game No. 190 Rogue 187 Adventurer 1 Explorer 2 Win Type - Total 4 Types 4/0/0/0/0/0/0 Lore% 64 Gallery% 63 Achievement% 53 Wizard Run 0 Options --------- ASCII 0 Keyboard 1 Movement Numpad Keybinds 0 Fullscreen 2 Font 12/Smallcaps Map View 83x54 Tactical HUD 1 Map Filters NONE Filters NONE Steam X RUN: 0602bf4a-57a0-42c7-bba2-edbd14d7da34